fUST/lending_fUST_20240417
["ID","MTS","AMOUNT","RATE_DAILY","PERIOD"]
[322812661,1713351496648,690.84,0.00040228,30]
[322812662,1713351496677,500.0,0.00040228,30]
[322812663,1713351496852,10011.72,0.00040228,30]
[322812664,1713351496919,690.84,0.00040228,30]
[322812665,1713351496950,500.0,0.00040228,30]
[322812666,1713351497107,10011.72,0.00040228,30]
[322812667,1713351497189,690.84,0.00040228,30]
[322812668,1713351497218,462.62119315,0.00040228,30]
[322812669,1713351497247,500.0,0.00040228,30]
[322812670,1713351497375,10011.72,0.00040228,30]
[322812671,1713351497466,690.84,0.00040228,30]
[322812672,1713351497502,500.0,0.00040228,30]
[322812673,1713351497809,8360.30577283,0.00040228,30]
[322812674,1713351517679,188.6440377,0.00012384,2]
[322812675,1713351583538,423.3179575,0.00012199,2]
[322812677,1713351638021,1069.56650164,0.00012862,2]
[322812685,1713351769001,3259.47706663,0.00011956,2]
[322812686,1713351769144,9000.0,0.00011956,2]
[322812687,1713351769175,9000.0,0.00011956,2]
[322812688,1713351769209,3640.52293337,0.00011956,2]
[322812751,1713352232555,-2125.76560283,0.00012797,2]
[322812752,1713352232565,-882.7275178,0.00012797,2]
[322812753,1713352232574,-282.92215931,0.00012797,2]
[322812754,1713352232584,-525.74547902,0.00012798,2]
[322812755,1713352232593,-173.04289703,0.00012799,2]
[322812756,1713352232602,-157.04962732,0.00012799,2]
[322812757,1713352232612,-205.83283873,0.00012799,2]
[322812758,1713352232621,-167.52776302,0.00012799,2]
[322812759,1713352232630,-471.02610279,0.00012799,2]
[322812760,1713352232639,-31262.99119214,0.00012799,2]
[322812761,1713352232648,-1548.91382456,0.00012799,2]
[322812762,1713352232658,-539.22318272,0.00012799,2]
[322812763,1713352232667,-154.87609912,0.00012799,2]
[322812764,1713352232676,-161.84978394,0.00012799,2]
[322812765,1713352232685,-203.60696342,0.000128,2]
[322812766,1713352232694,-6921.1263496,0.000128,2]
[322812767,1713352232704,-7858.55367278,0.000128,2]
[322812768,1713352232713,-118.16920266,0.000128,2]
[322812800,1713352238615,-536.28345965,0.000128,2]
[322812802,1713352238624,-1310.15475715,0.00012801,2]
[322812804,1713352238633,-154.87609912,0.00012801,2]
[322812806,1713352238642,-1488.61335239,0.00012801,2]
[322812809,1713352238651,-888.43676539,0.00012802,2]
[322812811,1713352238661,-408.43488901,0.00012802,2]
[322812812,1713352238670,-300.0,0.00012802,2]
[322812814,1713352238680,-300.0,0.00012802,2]
[322812816,1713352238689,-193.3820055,0.00012803,2]
[322812818,1713352238699,-2008.53667804,0.00012803,2]
[322812820,1713352238708,-469.12528489,0.00012803,2]
[322812821,1713352238718,-1575.3401522,0.00012803,2]
[322812822,1713352238727,-2584.94589356,0.00012804,2]
[322812823,1713352238736,-1089.26071762,0.00012804,2]
[322812825,1713352238745,-467.87279548,0.00012804,2]
[322812827,1713352238754,-154.87609912,0.00012804,2]
[322812829,1713352238763,-163.98644275,0.00012805,2]
[322812830,1713352238772,-4495.84813914,0.00012808,2]
[322812831,1713352238818,-134446.60961385,0.00012808,2]
[322812832,1713352238827,-933.94905261,0.00012824,2]
[322812833,1713352238835,-933.94905259,0.00012833,2]
[322812834,1713352238844,-933.94905259,0.00012842,2]
[322812835,1713352238853,-933.94905259,0.0001285,2]
[322812836,1713352238862,-933.94905259,0.00012859,2]
[322812837,1713352238873,-1775.61272508,0.00012954,2]
[322812838,1713352238882,-53981.42869134,0.00012955,2]
[322812840,1713352238892,-210.09411576,0.00012959,2]
[322812841,1713352238901,-155.53793997,0.00012959,2]
[322812846,1713352238911,-155.77600903,0.00012959,2]
[322812849,1713352239014,-155.21079364,0.0001296,2]
[322812851,1713352239024,-151.0,0.00013699,2]
[322812853,1713352239033,-151.0,0.00013699,2]
[322812855,1713352239041,-151.0,0.00013699,2]
[322812857,1713352239050,-151.0,0.00013699,2]
[322812859,1713352239059,-151.0,0.00013699,2]
[322812861,1713352239068,-151.0,0.00013699,2]
[322812863,1713352239077,-151.0,0.00013699,2]
[322812865,1713352239086,-198.828688,0.00013699,2]
[322812867,1713352239095,-151.0,0.00013699,2]
[322812868,1713352239104,-151.0,0.00013699,2]
[322812869,1713352239113,-151.0,0.00013699,2]
[322812870,1713352239123,-269.874839,0.00013699,2]
[322812871,1713352239132,-6208.584944,0.00013699,2]
[322812872,1713352239141,-6208.584944,0.00013699,2]
[322812873,1713352239150,-6208.584944,0.00013699,2]
[322812874,1713352239159,-6208.584944,0.00013699,2]
[322812875,1713352239167,-6208.584944,0.00013699,2]
[322812876,1713352239176,-6208.584944,0.00013699,2]
[322812877,1713352239186,-151.0,0.00013699,2]
[322812878,1713352239194,-151.0,0.00013699,2]
[322812879,1713352239204,-289.834412,0.00013699,2]
[322812880,1713352239213,-641.253222,0.00013699,2]
[322812881,1713352239222,-641.253222,0.00013699,2]
[322812882,1713352239231,-641.253222,0.00013699,2]
[322812883,1713352239239,-641.253222,0.00013699,2]
[322812884,1713352239248,-641.253222,0.00013699,2]
[322812885,1713352239258,-641.253222,0.00013699,2]
[322812886,1713352239267,-641.253222,0.00013699,2]
[322812887,1713352239276,-641.253222,0.00013699,2]
[322812888,1713352239285,-151.0,0.00013699,2]
[322812889,1713352239294,-151.0,0.00013699,2]
[322812890,1713352239303,-151.0,0.00013699,2]
[322812891,1713352239313,-151.0,0.00013699,2]
[322812892,1713352239322,-151.0,0.00013699,2]
[322812893,1713352239331,-151.0,0.00013699,2]
[322812894,1713352239340,-151.0,0.00013699,2]
[322812895,1713352239351,-151.0,0.00013699,2]
[322812896,1713352239360,-1416.421045,0.00013699,2]
[322812897,1713352239371,-1416.421045,0.00013699,2]
[322812898,1713352239380,-1416.421045,0.00013699,2]
[322812899,1713352239390,-1416.421045,0.00013699,2]
[322812900,1713352239399,-1416.421045,0.00013699,2]
[322812901,1713352239408,-1416.421045,0.00013699,2]
[322812902,1713352239417,-1416.421045,0.00013699,2]
[322812903,1713352239427,-1416.421045,0.00013699,2]
[322812904,1713352239437,-151.0,0.00013699,2]
[322812905,1713352239446,-151.0,0.00013699,2]
[322812906,1713352239454,-151.0,0.00013699,2]
[322812907,1713352239463,-151.0,0.00013699,2]
[322812908,1713352239473,-151.0,0.00013699,2]
[322812909,1713352239482,-151.0,0.00013699,2]
[322812910,1713352239490,-151.0,0.00013699,2]
[322812911,1713352239499,-151.0,0.00013699,2]
[322812912,1713352239509,-1200.027564,0.00013699,2]
[322812913,1713352239518,-151.0,0.00013699,2]
[322812914,1713352239528,-151.0,0.00013699,2]
[322812915,1713352239537,-263.91234,0.00013699,2]
[322812916,1713352239546,-3624.476914,0.00013699,2]
[322812917,1713352239555,-3624.476914,0.00013699,2]
[322812918,1713352239563,-3624.476914,0.00013699,2]
[322812919,1713352239572,-3624.476914,0.00013699,2]
[322812920,1713352239582,-3624.476914,0.00013699,2]
[322812921,1713352239593,-3624.476914,0.00013699,2]
[322812922,1713352239603,-3624.476914,0.00013699,2]
[322812923,1713352239612,-3624.476914,0.00013699,2]
[322812924,1713352239622,-3624.476914,0.00013699,2]
[322812925,1713352239630,-3624.476914,0.00013699,2]
[322812926,1713352239639,-151.0,0.00013699,2]
[322812927,1713352239648,-151.0,0.00013699,2]
[322812928,1713352239658,-151.0,0.00013699,2]
[322812929,1713352239666,-151.0,0.00013699,2]
[322812930,1713352239675,-151.0,0.00013699,2]
[322812931,1713352239684,-993.955638,0.00013699,2]
[322812932,1713352239694,-993.955638,0.00013699,2]
[322812933,1713352239703,-993.955638,0.00013699,2]
[322812934,1713352239712,-993.955638,0.00013699,2]
[322812935,1713352239721,-993.955638,0.00013699,2]
[322812936,1713352239730,-993.955638,0.00013699,2]
[322812937,1713352239739,-993.955638,0.00013699,2]
[322812938,1713352239749,-993.955638,0.00013699,2]
[322812939,1713352239757,-993.955638,0.00013699,2]
[322812940,1713352239767,-993.955638,0.00013699,2]
[322812941,1713352239776,-1389.560248,0.00013699,2]
[322812942,1713352239785,-1389.560248,0.00013699,2]
[322812943,1713352239794,-1389.560248,0.00013699,2]
[322812944,1713352239803,-1389.560248,0.00013699,2]
[322812945,1713352239813,-1389.560248,0.00013699,2]
[322812946,1713352239822,-1389.560248,0.00013699,2]
[322812947,1713352239831,-1389.560248,0.00013699,2]
[322812948,1713352239840,-1389.560248,0.00013699,2]
[322812949,1713352239849,-151.0,0.00013699,2]
[322812950,1713352239859,-152.874669,0.00013699,2]
[322812951,1713352239868,-151.0,0.00013699,2]
[322812952,1713352239877,-151.0,0.00013699,2]
[322812953,1713352239886,-151.0,0.00013699,2]
[322812954,1713352239895,-151.0,0.00013699,2]
[322812955,1713352239904,-151.0,0.00013699,2]
[322812956,1713352239913,-151.0,0.00013699,2]
[322812957,1713352239923,-151.0,0.00013699,2]
[322812958,1713352239932,-151.0,0.00013699,2]
[322812959,1713352239941,-294.930414,0.00013699,2]
[322812961,1713352239950,-294.930414,0.00013699,2]
[322812962,1713352239959,-294.930414,0.00013699,2]
[322812963,1713352239968,-294.930414,0.00013699,2]
[322812964,1713352239977,-294.930414,0.00013699,2]
[322812965,1713352239986,-294.930414,0.00013699,2]
[322812966,1713352239995,-294.930414,0.00013699,2]
[322812967,1713352240004,-294.930414,0.00013699,2]
[322812968,1713352240014,-151.0,0.00013699,2]
[322812969,1713352240023,-151.0,0.00013699,2]
[322812970,1713352240032,-641.253222,0.00013699,2]
[322812971,1713352240042,-641.253222,0.00013699,2]
[322812972,1713352240050,-151.0,0.00013699,2]
[322812973,1713352240060,-151.0,0.00013699,2]
[322812974,1713352240069,-1416.421045,0.00013699,2]
[322812975,1713352240078,-1416.421045,0.00013699,2]
[322812976,1713352240087,-151.0,0.00013699,2]
[322812977,1713352240097,-151.0,0.00013699,2]
[322812978,1713352240106,-151.0,0.00013699,2]
[322812979,1713352240116,-151.0,0.00013699,2]
[322812980,1713352240125,-151.0,0.00013699,2]
[322812981,1713352240134,-151.0,0.00013699,2]
[322812982,1713352240143,-151.0,0.00013699,2]
[322812983,1713352240152,-3624.476914,0.00013699,2]
[322812984,1713352240161,-3624.476914,0.00013699,2]
[322812985,1713352240170,-3624.476914,0.00013699,2]
[322812986,1713352240178,-3624.476914,0.00013699,2]
[322812987,1713352240187,-3624.476914,0.00013699,2]
[322812988,1713352240196,-3624.476914,0.00013699,2]
[322812989,1713352240205,-3624.476914,0.00013699,2]
[322812990,1713352240214,-3624.476914,0.00013699,2]
[322812991,1713352240223,-3624.476914,0.00013699,2]
[322812992,1713352240232,-3624.476918,0.00013699,2]
[322812993,1713352240241,-151.0,0.00013699,2]
[322812994,1713352240250,-198.583783,0.00013699,2]
[322812995,1713352240259,-993.955638,0.00013699,2]
[322812996,1713352240268,-993.955638,0.00013699,2]
[322812997,1713352240277,-993.955638,0.00013699,2]
[322812998,1713352240286,-993.955638,0.00013699,2]
[322812999,1713352240296,-993.955638,0.00013699,2]
[322813000,1713352240305,-993.955638,0.00013699,2]
[322813001,1713352240314,-993.955638,0.00013699,2]
[322813002,1713352240323,-993.955638,0.00013699,2]
[322813003,1713352240333,-993.955638,0.00013699,2]
[322813004,1713352240343,-993.95563,0.00013699,2]
[322813005,1713352240354,-1389.560248,0.00013699,2]
[322813006,1713352240363,-1389.560248,0.00013699,2]
[322813007,1713352240372,-1389.560248,0.00013699,2]
[322813008,1713352240382,-1389.560248,0.00013699,2]
[322813009,1713352240393,-1389.560248,0.00013699,2]
[322813010,1713352240402,-1389.560248,0.00013699,2]
[322813011,1713352240411,-1389.560248,0.00013699,2]
[322813012,1713352240423,-1389.560248,0.00013699,2]
[322813013,1713352240433,-1389.560248,0.00013699,2]
[322813014,1713352240442,-1389.560248,0.00013699,2]
[322813015,1713352240525,-1389.560248,0.00013699,2]
[322813016,1713352240534,-1389.560246,0.00013699,2]
[322813017,1713352240543,-151.0,0.00013699,2]
[322813018,1713352240552,-151.0,0.00013699,2]
[322813019,1713352240561,-151.0,0.00013699,2]
[322813020,1713352240570,-151.0,0.00013699,2]
[322813021,1713352240579,-151.0,0.00013699,2]
[322813022,1713352240588,-151.0,0.00013699,2]
[322813023,1713352240597,-168.231395,0.00013699,2]
[322813024,1713352240606,-294.930414,0.00013699,2]
[322813025,1713352240615,-294.930414,0.00013699,2]
[322813026,1713352240625,-294.930414,0.00013699,2]
[322813027,1713352240635,-294.930414,0.00013699,2]
[322813028,1713352240643,-294.930414,0.00013699,2]
[322813029,1713352240652,-294.930414,0.00013699,2]
[322813030,1713352240661,-294.930414,0.00013699,2]
[322813031,1713352240670,-294.930414,0.00013699,2]
[322813032,1713352240679,-294.930414,0.00013699,2]
[322813033,1713352240689,-294.930414,0.00013699,2]
[322813034,1713352240697,-294.930414,0.00013699,2]
[322813035,1713352240706,-294.930422,0.00013699,2]
[322813036,1713352240715,-348.47351461,0.00013939,2]
[322813037,1713352240724,-2122.16798476,0.0001394,2]
[322813038,1713352240733,-151.0,0.0001394,2]
[322813039,1713352240742,-151.0,0.0001394,2]
[322813040,1713352240751,-151.0,0.0001394,2]
[322813041,1713352240760,-6208.584944,0.0001394,2]
[322813042,1713352240769,-6208.584944,0.0001394,2]
[322813043,1713352240778,-926.63477986,0.00014,2]
[322813044,1713352240787,-641.253222,0.00014,2]
[322813045,1713352240796,-641.253222,0.00014,2]
[322813046,1713352240806,-151.0,0.00014,2]
[322813047,1713352240815,-151.0,0.00014,2]
[322813048,1713352240824,-1416.421045,0.00014,2]
[322813049,1713352240834,-1416.421045,0.00014,2]
[322813050,1713352240844,-151.0,0.00014,2]
[322813051,1713352240854,-370.0,0.00014042,2]
[322813052,1713352240863,-420.0,0.00014082,2]
[322813053,1713352240873,-937.89373734,0.00015,2]
[322813054,1713352240882,-156.84586358,0.00015,2]
[322813055,1713352240891,-772.566136,0.00015,2]
[322813056,1713352240901,-1697.52332177,0.00015,2]
[322813057,1713352240910,-2096.98803724,0.00015,2]
[322813058,1713352240920,-151.0,0.00015,2]
[322813059,1713352240929,-151.0,0.00015,2]
[322813060,1713352240939,-6208.584944,0.00015,2]
[322813061,1713352240949,-6208.584944,0.00015,2]
[322813062,1713352240959,-641.253222,0.00015,2]
[322813063,1713352240969,-641.253222,0.00015,2]
[322813064,1713352240979,-151.0,0.00015,2]
[322813065,1713352240989,-151.0,0.00015,2]
[322813066,1713352240998,-1416.421045,0.00015,2]
[322813067,1713352241008,-1416.421045,0.00015,2]
[322813068,1713352241017,-151.0,0.00015,2]
[322813069,1713352241026,-151.0,0.00015223,2]
[322813070,1713352241034,-6208.584944,0.00015223,2]
[322813071,1713352241044,-6208.584944,0.00015223,2]
[322813072,1713352241053,-361.42917162,0.00015223,2]
[322813073,1713352241063,-215.96397983,0.00015223,2]
[322813074,1713352241072,-384.28275228,0.00015232,2]
[322813075,1713352241081,-641.253222,0.00015379,2]
[322813076,1713352241091,-641.253222,0.00015379,2]
[322813077,1713352241100,-151.0,0.00015379,2]
[322813078,1713352241110,-282.0,0.00015379,2]
[322813079,1713352241120,-1416.421045,0.00015379,2]
[322813080,1713352241129,-1416.421045,0.00015379,2]
[322813081,1713352241138,-587.0,0.0001549,2]
[322813082,1713352241147,-231.504268,0.00015671,2]
[322813083,1713352241156,-154.8889487,0.00016144,2]
[322813084,1713352241165,-160.60934883,0.00016291,2]
[322813085,1713352241174,-151.0,0.00016313,2]
[322813086,1713352241183,-6208.584944,0.00016313,2]
[322813087,1713352241193,-6208.584944,0.00016313,2]
[322813088,1713352241203,-1051.22646061,0.00016314,2]
[322813089,1713352241212,-210.21457284,0.00016401,2]
[322813090,1713352241221,-185.78883387,0.00016508,2]
[322813091,1713352241230,-823.0,0.00017039,2]
[322813092,1713352241240,-304.83981549,0.00017086,2]
[322813093,1713352241249,-185.34804765,0.00017086,2]
[322813094,1713352241259,-204.64465498,0.00017086,2]
[322813095,1713352241269,-220.76672973,0.00017086,2]
[322813096,1713352241278,-206.81708734,0.00017086,2]
[322813097,1713352241287,-156.90185805,0.00017086,2]
[322813098,1713352241296,-156.32960126,0.00017086,2]
[322813099,1713352241306,-641.253222,0.00017086,2]
[322813100,1713352241315,-641.253222,0.00017086,2]
[322813101,1713352241324,-151.0,0.00017086,2]
[322813102,1713352241333,-1416.421045,0.00017086,2]
[322813103,1713352241347,-1416.421045,0.00017086,2]
[322813104,1713352241356,-167.32835926,0.00017825,2]
[322813105,1713352241366,-309.73672456,0.00017825,2]
[322813106,1713352241376,-309.73672456,0.00017826,2]
[322813107,1713352241386,-154.92704581,0.00017975,2]
[322813108,1713352241395,-602.61216035,0.000185,2]
[322813109,1713352241405,-1152.0,0.00018743,2]
[322813110,1713352241414,-151.0,0.00018937,2]
[322813111,1713352241424,-6208.584944,0.00018937,2]
[322813112,1713352241434,-6208.584944,0.00018937,2]
[322813113,1713352241445,-252.50563863,0.00018961,2]
[322813114,1713352241455,-1932.41114773,0.00018961,2]
[322813115,1713352241464,-641.253222,0.00018961,2]
[322813116,1713352241473,-641.253214,0.00018961,2]
[322813117,1713352241482,-151.0,0.00018961,2]
[322813118,1713352241492,-1416.421045,0.00018961,2]
[322813119,1713352241501,-1416.4210459,0.00018961,2]
[322813120,1713352241510,-155.54583325,0.00018962,2]
[322813121,1713352241519,-188.96976676,0.0001897,2]
[322813122,1713352241529,-1000.0,0.00019,2]
[322813123,1713352241538,-151.0,0.00019,2]
[322813124,1713352241547,-6208.584944,0.00019,2]
[322813125,1713352241558,-6208.584944,0.00019,2]
[322813126,1713352241567,-500.0,0.00019178,2]
[322813127,1713352241577,-500.0,0.00019178,2]
[322813128,1713352241586,-599.87704222,0.00019178,2]
[322813129,1713352241595,-500.0,0.00019178,2]
[322813130,1713352241604,-500.0,0.00019178,2]
[322813131,1713352241614,-211.75321061,0.00019178,2]
[322813132,1713352241624,-189.49943063,0.00019178,2]
[322813133,1713352241633,-500.0,0.00019178,2]
[322813134,1713352241642,-384.55293441,0.00019178,2]
[322813135,1713352241652,-500.0,0.00019178,2]
[322813136,1713352241661,-266.7220136,0.00019178,2]
[322813137,1713352241670,-500.0,0.00019178,2]
[322813138,1713352241679,-500.0,0.00019178,2]
[322813139,1713352241689,-500.0,0.00019178,2]
[322813140,1713352241698,-500.0,0.00019178,2]
[322813141,1713352241707,-298.33143545,0.00019178,2]
[322813142,1713352241717,-500.0,0.00019178,2]
[322813143,1713352241726,-500.0,0.00019178,2]
[322813144,1713352241735,-628.1031262,0.00019178,2]
[322813145,1713352241745,-560.60457874,0.00019178,2]
[322813146,1713352241754,-500.0,0.00019178,2]
[322813147,1713352241764,-500.0,0.00019178,2]
[322813148,1713352241773,-470.09015215,0.00019178,2]
[322813149,1713352241782,-265.39770589,0.00019178,2]
[322813150,1713352241791,-178.00211012,0.00019178,2]
[322813151,1713352241801,-151.0,0.00019178,2]
[322813152,1713352241810,-6208.584944,0.00019178,2]
[322813153,1713352241819,-6208.584938,0.00019178,2]
[322813154,1713352241828,-167.589469,0.00019178,2]
[322813155,1713352241838,-168.954828,0.00019178,2]
[322813156,1713352241847,-277.60171443,0.0002,2]
[322813157,1713352241857,-326.93310549,0.0002,2]
[322813158,1713352241867,-688.59429255,0.0002,2]
[322813159,1713352241877,-237.92490957,0.0002,2]
[322813160,1713352241963,-400.0,0.0002,2]
[322813161,1713352241972,-521.03498526,0.0002,2]
[322813162,1713352241981,-241.20667916,0.0002,2]
[322813163,1713352241991,-14058.30363324,0.0002,5]
[322813164,1713352242001,-200.0,0.0002,2]
[322813165,1713352242011,-1200.027564,0.00020548,2]
[322813166,1713352242021,-184.38784647,0.00020574,2]
[322813167,1713352242031,-1395.0,0.00020618,2]
[322813168,1713352242040,-16122.10740455,0.00021,2]
[322813169,1713352242050,-232.50525342,0.00021722,2]
[322813170,1713352242059,-611.8741466,0.00021918,2]
[322813171,1713352242069,-158.857458,0.00022,2]
[322813173,1713352242078,-313.8132407,0.00022,2]
[322813175,1713352242088,-243.24834116,0.00023,2]
[322813177,1713352242098,-211.15546602,0.00023247,2]
[322813179,1713352242107,-181.27172177,0.00023248,4]
[322813181,1713352242117,-151.0,0.000239,2]
[322813183,1713352242128,-151.0,0.000239,2]
[322813184,1713352242137,-151.0,0.000239,2]
[322813185,1713352242146,-151.0,0.000239,2]
[322813186,1713352242156,-153.626163,0.000239,2]
[322813187,1713352242165,-5264.78934869,0.00024,7]
[322813188,1713352242174,-262.619822,0.00024,2]
[322813189,1713352242184,-151.0,0.00024,2]
[322813190,1713352242193,-151.0,0.00024,2]
[322813191,1713352242203,-151.0,0.00024,2]
[322813192,1713352242212,-380.0,0.00024658,2]
[322813193,1713352242221,-373.66931251,0.000265,2]
[322813194,1713352242230,-79919.68461897,0.00026949,2]
[322813195,1713352242239,-225.878864,0.00026949,2]
[322813196,1713352242248,-151.0,0.00026949,2]
[322813197,1713352242257,-154.042065,0.00026949,2]
[322813198,1713352242266,-8507.18295185,0.00027,2]
[322813199,1713352242275,-160.19756079,0.00027,2]
[322813200,1713352242284,-151.0,0.00027,2]
[322813201,1713352242294,-154.87609912,0.00027,2]
[322813202,1713352242303,-457.01505676,0.0002717,2]
[322813204,1713352242312,-202.33119369,0.0002717,2]
[322813205,1713352242321,-309.61302161,0.0002717,2]
[322813206,1713352242331,-474.19997224,0.0002717,2]
[322813207,1713352242343,-294.33824874,0.0002717,2]
[322813208,1713352242354,-250.20053665,0.00027171,2]
[322813209,1713352242362,-151.0,0.00027397,2]
[322813210,1713352242371,-500.0,0.00027397,2]
[322813211,1713352242381,-500.0,0.00027397,2]
[322813212,1713352242391,-615.80028811,0.00027397,2]
[322813213,1713352242400,-500.0,0.00027397,2]
[322813214,1713352242409,-500.0,0.00027397,2]
[322813215,1713352242422,-500.0,0.00027397,2]
[322813216,1713352242430,-500.0,0.00027397,2]
[322813217,1713352242439,-500.0,0.00027397,2]
[322813218,1713352242449,-515.00642985,0.00027397,2]
[322813219,1713352242458,-500.0,0.00027397,2]
[322813220,1713352242470,-500.0,0.00027397,2]
[322813221,1713352242479,-500.0,0.00027397,2]
[322813222,1713352242488,-500.0,0.00027397,2]
[322813223,1713352242498,-500.0,0.00027397,2]
[322813224,1713352242506,-500.0,0.00027397,2]
[322813225,1713352242516,-500.0,0.00027397,2]
[322813227,1713352242525,-500.0,0.00027397,2]
[322813228,1713352242534,-500.0,0.00027397,2]
[322813229,1713352242543,-500.0,0.00027397,2]
[322813230,1713352242551,-500.0,0.00027397,2]
[322813231,1713352242561,-500.0,0.00027397,2]
[322813232,1713352242570,-500.0,0.00027397,2]
[322813233,1713352242579,-500.0,0.00027397,2]
[322813234,1713352242589,-500.0,0.00027397,2]
[322813235,1713352242598,-500.0,0.00027397,2]
[322813236,1713352242615,-500.0,0.00027397,2]
[322813237,1713352242636,-500.0,0.00027397,2]
[322813238,1713352242650,-500.0,0.00027397,2]
[322813239,1713352242666,-500.0,0.00027397,2]
[322813240,1713352242683,-404.50192895,0.00027397,2]
[322813241,1713352242700,-164.892209,0.00027397,2]
[322813242,1713352242713,-164.230867,0.00027397,2]
[322813243,1713352242729,-442.628924,0.00027397,2]
[322813244,1713352242744,-219.541874,0.00027397,2]
[322813245,1713352242759,-1000.0,0.00027397,2]
[322813246,1713352242772,-166.666666,0.00027397,2]
[322813247,1713352242790,-181.975715,0.00027397,2]
[322813248,1713352242806,-800.8369821,0.000275,17]
[322813249,1713352242819,-851.52203001,0.00027565,2]
[322813250,1713352242834,-269.164131,0.000279,2]
[322813251,1713352242864,-502.53,0.00028,2]
[322813253,1713352242889,-80000.0,0.00028,2]
[322813254,1713352242908,-150.0,0.00028,2]
[322813255,1713352242921,-166.666666,0.00028038,2]
[322813257,1713352242934,-166.666666,0.00028679,2]
[322813258,1713352242953,-5000.0,0.00029,2]
[322813259,1713352242973,-166.666666,0.00029321,2]
[322813260,1713352242985,-2086.0,0.000295,4]
[322813261,1713352242997,-3000.0,0.000296,4]
[322813262,1713352243014,-5313.02764777,0.000299,2]
[322813263,1713352243032,-320.85402885,0.000299,2]
[322813264,1713352243049,-320.8540288,0.000299,2]
[322813265,1713352243066,-320.8540288,0.000299,2]
[322813266,1713352243081,-320.8540288,0.000299,2]
[322813267,1713352243096,-320.8540288,0.000299,2]
[322813268,1713352243109,-320.8540288,0.000299,2]
[322813269,1713352243125,-320.8540288,0.000299,2]
[322813270,1713352243138,-320.8540288,0.000299,2]
[322813271,1713352243151,-320.8540288,0.000299,2]
[322813272,1713352243164,-320.8540288,0.000299,2]
[322813273,1713352243177,-320.8540288,0.000299,2]
[322813274,1713352243189,-320.8540288,0.000299,2]
[322813276,1713352243202,-320.8540288,0.000299,2]
[322813279,1713352243214,-320.8540288,0.000299,2]
[322813280,1713352243227,-320.8540288,0.000299,2]
[322813281,1713352243239,-320.8540288,0.000299,2]
[322813282,1713352243252,-320.8540288,0.000299,2]
[322813283,1713352243264,-320.8540288,0.000299,2]
[322813284,1713352243276,-320.8540288,0.000299,2]
[322813285,1713352243289,-320.8540288,0.000299,2]
[322813286,1713352243301,-166.666666,0.00029962,2]
[322813287,1713352243313,-200.0,0.0003,2]
[322813288,1713352243326,-190.41973629,0.0003,4]
[322813289,1713352243342,-1832.47502662,0.0003,2]
[322813290,1713352243355,-576.00236236,0.0003,2]
[322813291,1713352243367,-154.79670075,0.0003,4]
[322813292,1713352243381,-154.75239517,0.0003,2]
[322813294,1713352243394,-155.26741746,0.0003,4]
[322813295,1713352243406,-258.38039523,0.0003,4]
[322813296,1713352243420,-196.0,0.0003,2]
[322813297,1713352243433,-197.0490154,0.00030137,2]
[322813298,1713352243445,-150.135,0.00030368,2]
[322813299,1713352243458,-417.0,0.00030368,2]
[322813300,1713352243471,-166.666666,0.00030603,2]
[322813301,1713352243483,-320.4553623,0.000308,10]
[322813302,1713352243495,-3000.0,0.000315,4]
[322813303,1713352243508,-3000.0,0.000315,4]
[322813304,1713352243520,-3000.0,0.000315,4]
[322813305,1713352243531,-154.87609912,0.0003189,10]